[Event "Titled Tuesday Blitz August 22 Early 2023"]
[White "Forgacs, Attila Jr."]
[Black "Gutkin, Ilya"]
[WhiteFideId "773654"]
[BlackFideId "16203470"]
[WhiteElo "2481"]
[BlackElo "2366"]
[Result "0-1"]
[Round "6"]
[TimeControl "180+1"]
[Date "2023.08.22"]
[WhiteClock "0:00:09"]
[BlackClock "0:00:17"]
[Board "177"]

1. e4 {[%clk 0:02:57]}  e5 {[%clk 0:02:58]} 2. Nf3 {[%clk 0:02:58]}  Nc6 {[%clk 0:02:57]} 3. Bb5 {[%clk 0:02:58]}  Nf6 {[%clk 0:02:57]} 4. d3 {[%clk 0:02:58]}  Bc5 {[%clk 0:02:56]} 5. c3 {[%clk 0:02:59]}  O-O {[%clk 0:02:54]} 6. O-O {[%clk 0:02:59]}  Re8 {[%clk 0:02:45]} 7. Nbd2 {[%clk 0:02:59]}  Bf8 {[%clk 0:02:45]} 8. h3 {[%clk 0:02:58]}  d6 {[%clk 0:02:45]} 9. Re1 {[%clk 0:02:58]}  Bd7 {[%clk 0:02:44]} 10. Nf1 {[%clk 0:02:58]}  Ne7 {[%clk 0:02:44]} 11. Bc4 {[%clk 0:02:52]}  Ng6 {[%clk 0:02:42]} 12. Ng5 {[%clk 0:02:47]}  Nh8 {[%clk 0:02:42]} 13. f4 {[%clk 0:02:38]}  c6 {[%clk 0:02:36]} 14. fxe5 {[%clk 0:02:19]}  dxe5 {[%clk 0:02:29]} 15. Ng3 {[%clk 0:02:16]}  h6 {[%clk 0:02:28]} 16. Nf3 {[%clk 0:02:15]}  Ng6 {[%clk 0:02:28]} 17. Be3 {[%clk 0:02:10]}  Be6 {[%clk 0:02:27]} 18. Bxe6 {[%clk 0:02:07]}  Rxe6 {[%clk 0:02:28]} 19. Nf5 {[%clk 0:02:05]}  Ne7 {[%clk 0:02:21]} 20. Qd2 {[%clk 0:01:46]}  Nxf5 {[%clk 0:02:19]} 21. exf5 {[%clk 0:01:47]}  Rd6 {[%clk 0:02:19]} 22. Nxe5 {[%clk 0:01:44]}  Rd5 {[%clk 0:02:10]} 23. d4 {[%clk 0:01:38]}  c5 {[%clk 0:02:09]} 24. c4 {[%clk 0:01:29]}  cxd4 {[%clk 0:02:10]} 25. cxd5 {[%clk 0:01:27]}  dxe3 {[%clk 0:02:10]} 26. Qxe3 {[%clk 0:01:25]}  Qxd5 {[%clk 0:02:10]} 27. Rad1 {[%clk 0:01:21]}  Qa5 {[%clk 0:02:05]} 28. Kh1 {[%clk 0:01:15]}  Qxa2 {[%clk 0:02:01]} 29. Qc3 {[%clk 0:00:52]}  a5 {[%clk 0:01:55]} 30. Qc7 {[%clk 0:00:30]}  b5 {[%clk 0:01:45]} 31. Qb7 {[%clk 0:00:27]}  Re8 {[%clk 0:01:44]} 32. Qxb5 {[%clk 0:00:27]}  Rc8 {[%clk 0:01:37]} 33. Nd7 {[%clk 0:00:21]}  Nxd7 {[%clk 0:01:31]} 34. Rxd7 {[%clk 0:00:22]}  Rc5 {[%clk 0:01:25]} 35. Qd3 {[%clk 0:00:15]}  Qxb2 {[%clk 0:01:06]} 36. Rd8 {[%clk 0:00:15]}  Qb6 {[%clk 0:01:01]} 37. f6 {[%clk 0:00:06]}  Qxf6 {[%clk 0:00:42]} 38. Rf1 {[%clk 0:00:06]}  Qb6 {[%clk 0:00:37]} 39. Ra8 {[%clk 0:00:06]}  g6 {[%clk 0:00:22]} 40. Qf3 {[%clk 0:00:06]}  Qe6 {[%clk 0:00:18]} 41. Qb7 {[%clk 0:00:06]}  Kg7 {[%clk 0:00:14]} 42. Qb8 {[%clk 0:00:06]}  Qe7 {[%clk 0:00:11]} 43. Qb2+ {[%clk 0:00:06]}  Qe5 {[%clk 0:00:10]} 44. Qxe5+ {[%clk 0:00:05]}  Rxe5 {[%clk 0:00:11]} 45. Ra1 {[%clk 0:00:05]}  Bb4 {[%clk 0:00:11]} 46. Kg1 {[%clk 0:00:05]}  Rf5 {[%clk 0:00:11]} 47. g4 {[%clk 0:00:05]}  Rf3 {[%clk 0:00:10]} 48. Kg2 {[%clk 0:00:05]}  Rf4 {[%clk 0:00:11]} 49. Ra2 {[%clk 0:00:05]}  g5 {[%clk 0:00:11]} 50. Ra6 {[%clk 0:00:04]}  f6 {[%clk 0:00:11]} 51. Ra7+ {[%clk 0:00:04]}  Kg6 {[%clk 0:00:12]} 52. Rc2 {[%clk 0:00:04]}  h5 {[%clk 0:00:12]} 53. gxh5+ {[%clk 0:00:03]}  Kxh5 {[%clk 0:00:12]} 54. Rcc7 {[%clk 0:00:04]}  Kg6 {[%clk 0:00:12]} 55. Rg7+ {[%clk 0:00:04]}  Kf5 {[%clk 0:00:13]} 56. Ra6 {[%clk 0:00:03]}  Rc4 {[%clk 0:00:13]} 57. Rf7 {[%clk 0:00:03]}  Bc3 {[%clk 0:00:13]} 58. Rc7 {[%clk 0:00:03]}  Rxc7 {[%clk 0:00:12]} 59. Rb6 {[%clk 0:00:02]}  Be5 {[%clk 0:00:13]} 60. Rb3 {[%clk 0:00:03]}  Rc2+ {[%clk 0:00:13]} 61. Kf3 {[%clk 0:00:02]}  Rc3+ {[%clk 0:00:14]} 62. Rxc3 {[%clk 0:00:02]}  Bxc3 {[%clk 0:00:15]} 63. h4 {[%clk 0:00:03]}  gxh4 {[%clk 0:00:14]} 64. Kg2 {[%clk 0:00:01]}  h3+ {[%clk 0:00:15]} 65. Kxh3 {[%clk 0:00:02]}  a4 {[%clk 0:00:16]} 66. Kg2 {[%clk 0:00:03]}  a3 {[%clk 0:00:17]} 67. Kf3 {[%clk 0:00:03]}  a2 {[%clk 0:00:18]} 68. Ke2 {[%clk 0:00:04]}  a1=Q {[%clk 0:00:19]} 69. Kd3 {[%clk 0:00:05]}  Qd1+ {[%clk 0:00:19]} 70. Kc4 {[%clk 0:00:06]}  Ke4 {[%clk 0:00:19]} 71. Kb5 {[%clk 0:00:06]}  Be5 {[%clk 0:00:20]} 72. Kc4 {[%clk 0:00:07]}  Qc2+ {[%clk 0:00:19]} 73. Kb5 {[%clk 0:00:07]}  Kd5 {[%clk 0:00:20]} 74. Ka6 {[%clk 0:00:07]}  Qb3 {[%clk 0:00:20]} 75. Ka7 {[%clk 0:00:08]}  Kc6 {[%clk 0:00:19]} 76. Ka8 {[%clk 0:00:09]}  Qb7# {[%clk 0:00:17]} 0-1


[Site "https://www.chess.com"]

[Event "Titled Tuesday Blitz August 22 Early 2023"]
[White "Lopez Del Alamo, Antonio"]
[Black "Mmukka"]
[WhiteFideId "2227339"]
[WhiteElo "2332"]
[BlackElo "2459"]
[Result "0-1"]
[Round "6"]
[TimeControl "180+1"]
[Date "2023.08.22"]
[WhiteClock "0:00:02"]
[BlackClock "0:00:11"]
[Board "180"]

1. e4 {[%clk 0:03:00]}  c5 {[%clk 0:02:59]} 2. Nf3 {[%clk 0:03:00]}  e6 {[%clk 0:03:00]} 3. d3 {[%clk 0:02:59]}  d5 {[%clk 0:02:58]} 4. Nbd2 {[%clk 0:03:00]}  Nc6 {[%clk 0:02:53]} 5. g3 {[%clk 0:03:00]}  Nf6 {[%clk 0:02:51]} 6. Bg2 {[%clk 0:03:01]}  Qc7 {[%clk 0:02:49]} 7. O-O {[%clk 0:03:01]}  Be7 {[%clk 0:02:49]} 8. Re1 {[%clk 0:03:00]}  O-O {[%clk 0:02:47]} 9. e5 {[%clk 0:03:00]}  Nd7 {[%clk 0:02:47]} 10. Qe2 {[%clk 0:03:01]}  b5 {[%clk 0:02:48]} 11. a4 {[%clk 0:02:59]}  bxa4 {[%clk 0:02:31]} 12. Rxa4 {[%clk 0:02:51]}  Bb7 {[%clk 0:02:30]} 13. c3 {[%clk 0:02:49]}  a5 {[%clk 0:02:20]} 14. Nf1 {[%clk 0:02:41]}  Nb6 {[%clk 0:01:55]} 15. Rg4 {[%clk 0:02:32]}  Kh8 {[%clk 0:01:21]} 16. h4 {[%clk 0:02:28]}  Nd7 {[%clk 0:01:10]} 17. h5 {[%clk 0:02:22]}  f5 {[%clk 0:01:07]} 18. exf6 {[%clk 0:02:15]}  Nxf6 {[%clk 0:01:06]} 19. N1h2 {[%clk 0:02:03]}  Nxg4 {[%clk 0:00:59]} 20. Nxg4 {[%clk 0:02:04]}  Rae8 {[%clk 0:00:37]} 21. h6 {[%clk 0:01:54]}  Bf6 {[%clk 0:00:34]} 22. hxg7+ {[%clk 0:01:47]}  Bxg7 {[%clk 0:00:33]} 23. Ng5 {[%clk 0:01:01]}  e5 {[%clk 0:00:30]} 24. Bxd5 {[%clk 0:00:58]}  Nd4 {[%clk 0:00:21]} 25. Qe4 {[%clk 0:00:54]}  Nf5 {[%clk 0:00:14]} 26. Bxb7 {[%clk 0:00:51]}  h6 {[%clk 0:00:14]} 27. Nh3 {[%clk 0:00:44]}  Nd6 {[%clk 0:00:14]} 28. Qg6 {[%clk 0:00:42]}  Nxb7 {[%clk 0:00:13]} 29. Bxh6 {[%clk 0:00:39]}  Qf7 {[%clk 0:00:12]} 30. Qe4 {[%clk 0:00:34]}  Nd6 {[%clk 0:00:11]} 31. Qg2 {[%clk 0:00:32]}  Bxh6 {[%clk 0:00:10]} 32. Nxh6 {[%clk 0:00:33]}  Qg6 {[%clk 0:00:10]} 33. Qd5 {[%clk 0:00:07]}  Qxh6 {[%clk 0:00:10]} 34. Kg2 {[%clk 0:00:08]}  Qf6 {[%clk 0:00:09]} 35. Rh1 {[%clk 0:00:08]}  Kg7 {[%clk 0:00:10]} 36. f3 {[%clk 0:00:06]}  Nf5 {[%clk 0:00:10]} 37. Qe4 {[%clk 0:00:05]}  Qg6 {[%clk 0:00:10]} 38. g4 {[%clk 0:00:05]}  Nh4+ {[%clk 0:00:10]} 39. Kg3 {[%clk 0:00:05]}  Qxe4 {[%clk 0:00:11]} 40. fxe4 {[%clk 0:00:05]}  Ng6 {[%clk 0:00:10]} 41. Ng5 {[%clk 0:00:05]}  Rh8 {[%clk 0:00:10]} 42. Rf1 {[%clk 0:00:04]}  Nf4 {[%clk 0:00:11]} 43. Ra1 {[%clk 0:00:04]}  Kg6 {[%clk 0:00:11]} 44. Nf3 {[%clk 0:00:03]}  Rh3+ {[%clk 0:00:11]} 45. Kf2 {[%clk 0:00:04]}  Nxd3+ {[%clk 0:00:11]} 46. Ke3 {[%clk 0:00:04]}  Rf8 {[%clk 0:00:12]} 47. Rxa5 {[%clk 0:00:04]}  Rhxf3+ {[%clk 0:00:11]} 48. Ke2 {[%clk 0:00:02]}  Nf4+ {[%clk 0:00:11]} 0-1


[Site "https://www.chess.com"]

[Event "Titled Tuesday Blitz August 22 Early 2023"]
[White "Hrescak, Ivana"]
[Black "Szyszylo, Rafal"]
[WhiteFideId "14613441"]
[BlackFideId "1109626"]
[WhiteElo "2286"]
[BlackElo "2445"]
[Result "0-1"]
[Round "6"]
[TimeControl "180+1"]
[Date "2023.08.22"]
[WhiteClock "0:01:53"]
[BlackClock "0:02:09"]
[Board "181"]

1. e4 {[%clk 0:03:00]}  d6 {[%clk 0:03:00]} 2. d4 {[%clk 0:03:00]}  Nf6 {[%clk 0:02:59]} 3. Nc3 {[%clk 0:03:00]}  g6 {[%clk 0:02:59]} 4. Be3 {[%clk 0:02:57]}  c6 {[%clk 0:02:59]} 5. Qd2 {[%clk 0:02:55]}  b5 {[%clk 0:02:58]} 6. f3 {[%clk 0:02:45]}  Nbd7 {[%clk 0:02:57]} 7. O-O-O {[%clk 0:02:45]}  Nb6 {[%clk 0:02:57]} 8. Kb1 {[%clk 0:02:45]}  b4 {[%clk 0:02:57]} 9. Nce2 {[%clk 0:02:44]}  Nc4 {[%clk 0:02:54]} 10. Qc1 {[%clk 0:02:42]}  Nxe3 {[%clk 0:02:29]} 11. Qxe3 {[%clk 0:02:41]}  Bg7 {[%clk 0:02:27]} 12. h4 {[%clk 0:02:41]}  h5 {[%clk 0:02:27]} 13. Nh3 {[%clk 0:02:34]}  Bxh3 {[%clk 0:02:18]} 14. Rxh3 {[%clk 0:02:34]}  a5 {[%clk 0:02:15]} 15. Nf4 {[%clk 0:02:19]}  Qb6 {[%clk 0:02:12]} 16. Bc4 {[%clk 0:01:58]}  e5 {[%clk 0:02:11]} 17. dxe5 {[%clk 0:01:53]}  Qxe3 {[%clk 0:02:09]} 0-1


[Site "https://www.chess.com"]

[Event "Titled Tuesday Blitz August 22 Early 2023"]
[White "Zampronha, Wladimir Camilo"]
[Black "Bueno, Alfeu Junior Varela"]
[WhiteFideId "2103087"]
[BlackFideId "2108879"]
[WhiteElo "2275"]
[BlackElo "2419"]
[Result "0-1"]
[Round "6"]
[TimeControl "180+1"]
[Date "2023.08.22"]
[WhiteClock "0:01:15"]
[BlackClock "0:00:22"]
[Board "182"]

1. e4 {[%clk 0:03:00]}  e6 {[%clk 0:02:52]} 2. d4 {[%clk 0:02:59]}  d5 {[%clk 0:02:50]} 3. Nc3 {[%clk 0:03:00]}  Nf6 {[%clk 0:02:49]} 4. e5 {[%clk 0:03:00]}  Nfd7 {[%clk 0:02:49]} 5. f4 {[%clk 0:03:00]}  c5 {[%clk 0:02:49]} 6. Nf3 {[%clk 0:03:01]}  Nc6 {[%clk 0:02:50]} 7. Be3 {[%clk 0:03:01]}  cxd4 {[%clk 0:02:51]} 8. Nxd4 {[%clk 0:03:00]}  Bc5 {[%clk 0:02:51]} 9. Qd2 {[%clk 0:03:00]}  O-O {[%clk 0:02:50]} 10. O-O-O {[%clk 0:02:58]}  a6 {[%clk 0:02:51]} 11. h4 {[%clk 0:02:55]}  Nxd4 {[%clk 0:02:50]} 12. Bxd4 {[%clk 0:02:54]}  b5 {[%clk 0:02:50]} 13. Rh3 {[%clk 0:02:52]}  b4 {[%clk 0:02:49]} 14. Na4 {[%clk 0:02:47]}  Bxd4 {[%clk 0:02:47]} 15. Qxd4 {[%clk 0:02:48]}  Qa5 {[%clk 0:02:47]} 16. b3 {[%clk 0:02:34]}  Bb7 {[%clk 0:02:44]} 17. g4 {[%clk 0:02:27]}  Bc6 {[%clk 0:02:41]} 18. f5 {[%clk 0:02:20]}  Bxa4 {[%clk 0:02:36]} 19. bxa4 {[%clk 0:02:21]}  Qxa4 {[%clk 0:02:18]} 20. Bd3 {[%clk 0:02:06]}  Qxa2 {[%clk 0:02:05]} 21. g5 {[%clk 0:01:59]}  b3 {[%clk 0:02:01]} 22. Qb2 {[%clk 0:01:34]}  Qxb2+ {[%clk 0:01:57]} 23. Kxb2 {[%clk 0:01:35]}  bxc2 {[%clk 0:01:57]} 24. Bxc2 {[%clk 0:01:34]}  Nxe5 {[%clk 0:01:57]} 25. fxe6 {[%clk 0:01:31]}  fxe6 {[%clk 0:01:57]} 26. Re1 {[%clk 0:01:28]}  Rab8+ {[%clk 0:01:45]} 27. Ka1 {[%clk 0:01:27]}  Nc4 {[%clk 0:01:37]} 28. Rxe6 {[%clk 0:01:15]}  Rf1+ {[%clk 0:00:22]} 0-1


[Site "https://www.chess.com"]

[Event "Titled Tuesday Blitz August 22 Early 2023"]
[White "Slavin, Alexey"]
[Black "SergioMoralesG"]
[WhiteFideId "24104388"]
[WhiteElo "2262"]
[BlackElo "2416"]
[Result "0-1"]
[Round "6"]
[TimeControl "180+1"]
[Date "2023.08.22"]
[WhiteClock "0:00:37"]
[BlackClock "0:00:15"]
[Board "183"]

1. e4 {[%clk 0:03:00]}  c5 {[%clk 0:02:59]} 2. g3 {[%clk 0:02:59]}  Nc6 {[%clk 0:02:57]} 3. Bg2 {[%clk 0:02:59]}  g6 {[%clk 0:02:58]} 4. Ne2 {[%clk 0:02:59]}  Bg7 {[%clk 0:02:58]} 5. O-O {[%clk 0:02:59]}  e5 {[%clk 0:02:58]} 6. Nbc3 {[%clk 0:02:59]}  Nge7 {[%clk 0:02:58]} 7. a3 {[%clk 0:02:57]}  O-O {[%clk 0:02:57]} 8. Rb1 {[%clk 0:02:56]}  a5 {[%clk 0:02:55]} 9. d3 {[%clk 0:02:56]}  d6 {[%clk 0:02:53]} 10. Nb5 {[%clk 0:02:54]}  Nd4 {[%clk 0:02:45]} 11. Nexd4 {[%clk 0:02:53]}  cxd4 {[%clk 0:02:45]} 12. c4 {[%clk 0:02:52]}  dxc3 {[%clk 0:02:42]} 13. bxc3 {[%clk 0:02:51]}  f5 {[%clk 0:02:26]} 14. f4 {[%clk 0:02:39]}  Kh8 {[%clk 0:02:06]} 15. a4 {[%clk 0:02:38]}  d5 {[%clk 0:01:58]} 16. Ba3 {[%clk 0:02:35]}  d4 {[%clk 0:01:42]} 17. cxd4 {[%clk 0:02:28]}  exd4 {[%clk 0:01:42]} 18. e5 {[%clk 0:02:28]}  Be6 {[%clk 0:01:22]} 19. Bxb7 {[%clk 0:02:24]}  Nd5 {[%clk 0:01:09]} 20. Bxf8 {[%clk 0:02:16]}  Bxf8 {[%clk 0:01:07]} 21. Nxd4 {[%clk 0:02:05]}  Bc5 {[%clk 0:00:50]} 22. Qf3 {[%clk 0:01:37]}  Bxd4+ {[%clk 0:00:49]} 23. Kh1 {[%clk 0:01:36]}  Ra7 {[%clk 0:00:42]} 24. Rfc1 {[%clk 0:01:18]}  Nc3 {[%clk 0:00:34]} 25. Rxc3 {[%clk 0:01:12]}  Bxc3 {[%clk 0:00:32]} 26. Rb5 {[%clk 0:01:09]}  Bd4 {[%clk 0:00:23]} 27. Qc6 {[%clk 0:01:06]}  Qd7 {[%clk 0:00:16]} 28. Qc2 {[%clk 0:00:51]}  Rxb7 {[%clk 0:00:13]} 29. h4 {[%clk 0:00:48]}  Rxb5 {[%clk 0:00:12]} 30. axb5 {[%clk 0:00:48]}  Bd5+ {[%clk 0:00:12]} 31. Kh2 {[%clk 0:00:48]}  Kg7 {[%clk 0:00:13]} 32. Qa4 {[%clk 0:00:45]}  Bb6 {[%clk 0:00:12]} 33. h5 {[%clk 0:00:42]}  Bb7 {[%clk 0:00:11]} 34. Qc4 {[%clk 0:00:40]}  Qd5 {[%clk 0:00:11]} 35. Qxd5 {[%clk 0:00:39]}  Bxd5 {[%clk 0:00:12]} 36. hxg6 {[%clk 0:00:38]}  hxg6 {[%clk 0:00:13]} 37. g4 {[%clk 0:00:37]}  a4 {[%clk 0:00:13]} 38. Kg3 {[%clk 0:00:38]}  a3 {[%clk 0:00:13]} 39. gxf5 {[%clk 0:00:38]}  gxf5 {[%clk 0:00:14]} 40. Kh4 {[%clk 0:00:38]}  a2 {[%clk 0:00:14]} 41. Kg5 {[%clk 0:00:38]}  Be6 {[%clk 0:00:14]} 42. d4 {[%clk 0:00:38]}  a1=Q {[%clk 0:00:15]} 43. d5 {[%clk 0:00:39]}  Qg1+ {[%clk 0:00:15]} 44. Kh5 {[%clk 0:00:37]}  Qg4# {[%clk 0:00:15]} 0-1


[Site "https://www.chess.com"]

[Event "Titled Tuesday Blitz August 22 Early 2023"]
[White "Clawitter, Craig"]
[Black "Fernandez Garcia, Gumersindo"]
[WhiteFideId "2023105"]
[BlackFideId "24516740"]
[WhiteElo "2221"]
[BlackElo "2407"]
[Result "1-0"]
[Round "6"]
[TimeControl "180+1"]
[Date "2023.08.22"]
[WhiteClock "0:00:19"]
[BlackClock "0:00:31"]
[Board "185"]

1. e4 {[%clk 0:02:55]}  e5 {[%clk 0:02:56]} 2. Nf3 {[%clk 0:02:54]}  Nc6 {[%clk 0:02:56]} 3. Bb5 {[%clk 0:02:55]}  f5 {[%clk 0:02:56]} 4. Nc3 {[%clk 0:02:53]}  fxe4 {[%clk 0:02:53]} 5. Nxe4 {[%clk 0:02:54]}  d5 {[%clk 0:02:53]} 6. Nxe5 {[%clk 0:02:54]}  dxe4 {[%clk 0:02:53]} 7. Nxc6 {[%clk 0:02:52]}  Qd5 {[%clk 0:02:54]} 8. c4 {[%clk 0:02:37]}  Qd6 {[%clk 0:02:54]} 9. Qh5+ {[%clk 0:02:32]}  g6 {[%clk 0:02:52]} 10. Qe5+ {[%clk 0:02:32]}  Kf7 {[%clk 0:02:32]} 11. Qxh8 {[%clk 0:01:47]}  Nf6 {[%clk 0:02:30]} 12. c5 {[%clk 0:01:22]}  Qd5 {[%clk 0:01:31]} 13. Bc4 {[%clk 0:01:21]}  bxc6 {[%clk 0:01:24]} 14. Bxd5+ {[%clk 0:01:11]}  cxd5 {[%clk 0:01:25]} 15. d3 {[%clk 0:01:09]}  Bb7 {[%clk 0:01:19]} 16. Bg5 {[%clk 0:00:48]}  Bg7 {[%clk 0:01:19]} 17. Qxa8 {[%clk 0:00:47]}  Bxa8 {[%clk 0:01:18]} 18. O-O-O {[%clk 0:00:44]}  Ng4 {[%clk 0:01:09]} 19. dxe4 {[%clk 0:00:37]}  h6 {[%clk 0:00:47]} 20. Bh4 {[%clk 0:00:30]}  c6 {[%clk 0:00:46]} 21. exd5 {[%clk 0:00:27]}  cxd5 {[%clk 0:00:47]} 22. Rhe1 {[%clk 0:00:27]}  g5 {[%clk 0:00:42]} 23. Bg3 {[%clk 0:00:27]}  Bc6 {[%clk 0:00:42]} 24. h3 {[%clk 0:00:25]}  Nf6 {[%clk 0:00:43]} 25. Be5 {[%clk 0:00:22]}  Bf8 {[%clk 0:00:43]} 26. Bxf6 {[%clk 0:00:20]}  Kxf6 {[%clk 0:00:44]} 27. b4 {[%clk 0:00:20]}  a5 {[%clk 0:00:44]} 28. a3 {[%clk 0:00:20]}  axb4 {[%clk 0:00:43]} 29. axb4 {[%clk 0:00:21]}  Be7 {[%clk 0:00:43]} 30. Rd3 {[%clk 0:00:20]}  Bd8 {[%clk 0:00:43]} 31. Rf3+ {[%clk 0:00:20]}  Kg7 {[%clk 0:00:41]} 32. Re6 {[%clk 0:00:20]}  Bb5 {[%clk 0:00:40]} 33. Rd6 {[%clk 0:00:19]}  g4 {[%clk 0:00:35]} 34. hxg4 {[%clk 0:00:19]}  Bg5+ {[%clk 0:00:35]} 35. Kc2 {[%clk 0:00:19]}  Bc4 {[%clk 0:00:36]} 36. Rf5 {[%clk 0:00:18]}  Ba2 {[%clk 0:00:32]} 37. Rdxd5 {[%clk 0:00:17]}  Kg6 {[%clk 0:00:25]} 38. Rxg5+ {[%clk 0:00:16]}  hxg5 {[%clk 0:00:26]} 39. Rd6+ {[%clk 0:00:17]}  Kf7 {[%clk 0:00:26]} 40. c6 {[%clk 0:00:17]}  Ke7 {[%clk 0:00:27]} 41. Rd4 {[%clk 0:00:16]}  Be6 {[%clk 0:00:26]} 42. c7 {[%clk 0:00:16]}  Bc8 {[%clk 0:00:25]} 43. Rd8 {[%clk 0:00:16]}  Ba6 {[%clk 0:00:25]} 44. c8=Q {[%clk 0:00:16]}  Bxc8 {[%clk 0:00:26]} 45. Rxc8 {[%clk 0:00:17]}  Kd7 {[%clk 0:00:26]} 46. Rc3 {[%clk 0:00:18]}  Kd6 {[%clk 0:00:27]} 47. b5 {[%clk 0:00:18]}  Ke5 {[%clk 0:00:28]} 48. b6 {[%clk 0:00:19]}  Kf4 {[%clk 0:00:27]} 49. b7 {[%clk 0:00:19]}  Kxg4 {[%clk 0:00:28]} 50. b8=Q {[%clk 0:00:19]}  Kh4 {[%clk 0:00:29]} 51. Qg3+ {[%clk 0:00:19]}  Kh5 {[%clk 0:00:29]} 52. Rc5 {[%clk 0:00:18]}  Kh6 {[%clk 0:00:29]} 53. Qxg5+ {[%clk 0:00:19]}  Kh7 {[%clk 0:00:30]} 54. Rc7+ {[%clk 0:00:18]}  Kh8 {[%clk 0:00:31]} 55. Qg7# {[%clk 0:00:19]} 1-0


[Site "https://www.chess.com"]

[Event "Titled Tuesday Blitz August 22 Early 2023"]
[White "Efremov, Vladislav"]
[Black "campochess"]
[WhiteFideId "44159935"]
[WhiteElo "2400"]
[BlackElo "2168"]
[Result "0-1"]
[Round "6"]
[TimeControl "180+1"]
[Date "2023.08.22"]
[WhiteClock "0:00:15"]
[BlackClock "0:00:24"]
[Board "188"]

1. e4 {[%clk 0:03:00]}  c5 {[%clk 0:02:59]} 2. Nf3 {[%clk 0:03:00]}  Nc6 {[%clk 0:02:58]} 3. Bb5 {[%clk 0:02:59]}  e5 {[%clk 0:02:58]} 4. O-O {[%clk 0:02:58]}  Nf6 {[%clk 0:02:56]} 5. Bxc6 {[%clk 0:02:58]}  dxc6 {[%clk 0:02:55]} 6. Nxe5 {[%clk 0:02:58]}  h5 {[%clk 0:02:53]} 7. c3 {[%clk 0:02:49]}  Be7 {[%clk 0:02:51]} 8. d4 {[%clk 0:02:49]}  Nxe4 {[%clk 0:02:45]} 9. Re1 {[%clk 0:02:46]}  Nf6 {[%clk 0:02:41]} 10. Bg5 {[%clk 0:02:42]}  Kf8 {[%clk 0:02:40]} 11. dxc5 {[%clk 0:02:26]}  Qxd1 {[%clk 0:02:38]} 12. Rxd1 {[%clk 0:02:27]}  Be6 {[%clk 0:02:38]} 13. b4 {[%clk 0:02:25]}  Nd5 {[%clk 0:02:34]} 14. Bxe7+ {[%clk 0:02:26]}  Kxe7 {[%clk 0:02:33]} 15. h3 {[%clk 0:02:18]}  a5 {[%clk 0:02:28]} 16. Nd3 {[%clk 0:02:12]}  Rhd8 {[%clk 0:02:21]} 17. Re1 {[%clk 0:02:07]}  Kf6 {[%clk 0:02:19]} 18. Ne5 {[%clk 0:01:59]}  axb4 {[%clk 0:02:14]} 19. cxb4 {[%clk 0:01:57]}  Nxb4 {[%clk 0:02:14]} 20. Nc3 {[%clk 0:01:57]}  Bf5 {[%clk 0:02:00]} 21. Nf3 {[%clk 0:01:48]}  Nc2 {[%clk 0:01:56]} 22. Rab1 {[%clk 0:01:34]}  Nxe1 {[%clk 0:01:53]} 23. Rxe1 {[%clk 0:01:34]}  Rd3 {[%clk 0:01:49]} 24. Ne4+ {[%clk 0:01:31]}  Bxe4 {[%clk 0:01:48]} 25. Rxe4 {[%clk 0:01:32]}  Rxa2 {[%clk 0:01:41]} 26. Rb4 {[%clk 0:01:32]}  Rd1+ {[%clk 0:01:38]} 27. Kh2 {[%clk 0:01:31]}  Rxf2 {[%clk 0:01:38]} 28. Rxb7 {[%clk 0:01:26]}  Rc2 {[%clk 0:01:34]} 29. Kg3 {[%clk 0:01:12]}  Rd3 {[%clk 0:01:31]} 30. h4 {[%clk 0:01:06]}  Rxc5 {[%clk 0:01:28]} 31. Kf4 {[%clk 0:01:06]}  Rc4+ {[%clk 0:01:26]} 32. Kg3 {[%clk 0:01:04]}  Rg4+ {[%clk 0:01:11]} 33. Kf2 {[%clk 0:01:03]}  Rf4 {[%clk 0:01:10]} 34. Ke2 {[%clk 0:01:00]}  Rd6 {[%clk 0:01:08]} 35. g3 {[%clk 0:00:39]}  Rc4 {[%clk 0:01:06]} 36. Ng5 {[%clk 0:00:36]}  Kg6 {[%clk 0:00:56]} 37. Nxf7 {[%clk 0:00:34]}  Rc2+ {[%clk 0:00:50]} 38. Ke3 {[%clk 0:00:33]}  Re6+ {[%clk 0:00:49]} 39. Kd3 {[%clk 0:00:22]}  Rce2 {[%clk 0:00:44]} 40. Nh8+ {[%clk 0:00:21]}  Kh7 {[%clk 0:00:37]} 41. Nf7 {[%clk 0:00:20]}  R6e3+ {[%clk 0:00:34]} 42. Kd4 {[%clk 0:00:20]}  Rxg3 {[%clk 0:00:34]} 43. Ng5+ {[%clk 0:00:20]}  Kg6 {[%clk 0:00:33]} 44. Rc7 {[%clk 0:00:17]}  Rc2 {[%clk 0:00:32]} 45. Ne4 {[%clk 0:00:14]}  Rg4 {[%clk 0:00:31]} 46. Ke5 {[%clk 0:00:14]}  Re2 {[%clk 0:00:26]} 47. Rxc6+ {[%clk 0:00:15]}  Kh7 {[%clk 0:00:26]} 48. Rc4 {[%clk 0:00:14]}  Rxh4 {[%clk 0:00:26]} 49. Kf5 {[%clk 0:00:15]}  Rhxe4 {[%clk 0:00:25]} 50. Rxe4 {[%clk 0:00:15]}  Rxe4 {[%clk 0:00:24]} 51. Kxe4 {[%clk 0:00:15]} 0-1


[Site "https://www.chess.com"]